[Event "Australian-ch 2018"]
[Site "Sydney"]
[Date "2018.01.08"]
[Round "7.6"]
[White "Guichard, Pauline"]
[Black "Solomon, Stephen J"]
[Result "0-1"]
[ECO "A07"]
[WhiteElo "2269"]
[BlackElo "2365"]
[PlyCount "100"]
[EventDate "2018.01.02"]
[EventType "tourn"]
[EventCountry "AUS"]
[TimeControl "40/5400+30:1800+30"]

1. Nf3 {[%emt 0:01:13]} Nf6 {[%emt 0:01:54]} 2. g3 {[%emt 0:00:13]} d5 {[%emt 0:00:40]} 3. Bg2 {[%emt 0:00:15]} c6 {[%emt 0:00:20]} 4. O-O {[%emt 0:00:10]} Bg4 {[%emt 0:00:14]} 5. d3 {[%emt 0:00:24]} Nbd7 {[%emt 0:00:15]} 6. Qe1 {[%emt 0:00:25]} e5 {[%emt 0:01:54]} 7. e4 {[%emt 0:00:10]} dxe4 {[%emt 0:05:29]} 8. dxe4 {[%emt 0:00:10]} Bc5 {[%emt 0:00:17]} 9. Nbd2 {[%emt 0:00:09]} O-O {[%emt 0:02:13]} 10. h3 {[%emt 0:00:11]} Bh5 {[%emt 0:02:08]} 11. a4 {[%emt 0:00:11]} a5 {[%emt 0:01:09]} 12. Nc4 {[%emt 0:00:22]} Re8 {[%emt 0:01:55]} 13. Bd2 {[%emt 0:02:02]} b6 {[%emt 0:02:50]} 14. Nh4 {[%emt 0:00:52]} Qc7 {[%emt 0:02:58]} 15. Bg5 {[%emt 0:16:12]} Rad8 {[%emt 0:13:08]} 16. Nf5 {[%emt 0:01:33]} h6 {[%emt 0:01:36]} 17. Bh4 {[%emt 0:06:55]} Kh7 {[%emt 0:12:00]} 18. g4 {[%emt 0:04:18]} Bg6 {[%emt 0:00:10]} 19. Kh1 {[%emt 0:02:21]} h5 {[%emt 0:11:47]} 20. Bf3 {[%emt 0:03:52]} hxg4 {[%emt 0:01:28]} 21. hxg4 {[%emt 0:00:18]} Rh8 {[%emt 0:00:39]} 22. Kg2 {[%emt 0:03:39]} Bxf5 {[%emt 0:01:44]} 23. gxf5 {[%emt 0:01:11]} g6 {[%emt 0:04:36]} 24. Rh1 {[%emt 0:09:23]} Kg7 {[%emt 0:00:32]} 25. Qd2 {[%emt 0:09:19]} Rdg8 {[%emt 0:11:54]} 26. Bg3 {[%emt 0:02:50]} Rxh1 {[%emt 0:03:32]} 27. Rxh1 {[%emt 0:00:20]} Kf8 {[%emt 0:00:10]} 28. Qg5 {[%emt 0:05:48]} Ke7 {[%emt 0:02:09]} 29. Rh6 {[%emt 0:03:34]} b5 {[%emt 0:04:01]} 30. Nd2 {[%emt 0:00:46]} gxf5 {[%emt 0:03:05]} 31. Qxf5 {[%emt 0:02:03]} Qd6 {[%emt 0:01:30]} 32. Nb3 {[%emt 0:01:00]} Bb6 {[%emt 0:03:55]} 33. Kh3 {[%emt 0:10:19]} bxa4 {[%emt 0:00:33]} 34. Nc1 {[%emt 0:00:09]} Qe6 {[%emt 0:02:51]} 35. Bh4 {[%emt 0:00:49]} Rg6 {[%emt 0:00:40]} 36. Rh8 {[%emt 0:00:58]} Kd6 {[%emt 0:00:49]} 37. Nd3 {[%emt 0:02:20]} Nc5 {[%emt 0:00:48]} 38. Rb8 {[%emt 0:05:55]} Nxd3 {[%emt 0:00:22]} 39. cxd3 {[%emt 0:00:03]} Bd4 {[%emt 0:00:18]} 40. Rb7 {[%emt 0:04:26]} Rh6 {[%emt 0:30:25]} 41. Qxe6+ {[%emt 0:32:20]} fxe6 {[%emt 0:00:00]} 42. Rf7 {[%emt 0:00:00]} Bxf2 {[%emt 0:00:00]} 43. Rxf6 {[%emt 0:00:00]} Rxh4+ {[%emt 0:00:00]} 44. Kg2 {[%emt 0:00:00]} Bd4 {[%emt 0:00:00]} 45. Kg3 {[%emt 0:00:00]} Rf4 {[%emt 0:00:00]} 46. Rh6 {[%emt 0:00:00]} Rxf3+ {[%emt 0:00:00]} 47. Kxf3 {[%emt 0:00:00]} Bxb2 {[%emt 0:00:00]} 48. d4 {[%emt 0:00:00]} a3 {[%emt 0:00:00]} 49. dxe5+ {[%emt 0:00:00]} Kc5 {[%emt 0:00:00]} 50. Rh2 {[%emt 0:00:00]} a2 {[%emt 0:00:00]} 0-1

[Event "Australian-ch 2018"]
[Site "Sydney"]
[Date "2018.01.08"]
[Round "7.7"]
[White "Xie, George Wendi"]
[Black "Nakauchi, Gene"]
[Result "1-0"]
[ECO "B43"]
[WhiteElo "2369"]
[BlackElo "2208"]
[PlyCount "117"]
[EventDate "2018.01.02"]
[EventType "tourn"]
[EventCountry "AUS"]
[TimeControl "40/5400+30:1800+30"]

1. e4 {[%emt 0:00:00]} c5 {[%emt 0:00:06]} 2. Nf3 {[%emt 0:00:00]} e6 {[%emt 0:00:07]} 3. Nc3 {[%emt 0:00:00]} a6 {[%emt 0:00:27]} 4. g3 {[%emt 0:00:00]} b5 {[%emt 0:02:49]} 5. d4 {[%emt 0:00:01]} cxd4 {[%emt 0:00:16]} 6. Nxd4 {[%emt 0:00:04]} b4 {[%emt 0:05:18]} 7. Na4 {[%emt 0:00:04]} Bb7 {[%emt 0:01:01]} 8. Bg2 {[%emt 0:00:04]} Nf6 {[%emt 0:06:02]} 9. O-O {[%emt 0:03:49]} Bxe4 {[%emt 0:12:18]} 10. Bxe4 {[%emt 0:00:04]} Nxe4 {[%emt 0:00:05]} 11. Re1 {[%emt 0:00:03]} Nc5 {[%emt 0:03:49]} 12. Qf3 {[%emt 0:04:25]} Ra7 {[%emt 0:02:20]} 13. Be3 {[%emt 0:01:33]} Rc7 {[%emt 0:02:57]} 14. Nb6 {[%emt 0:04:52]} Be7 {[%emt 0:03:45]} 15. a3 {[%emt 0:01:42]} bxa3 {[%emt 0:02:47]} 16. b4 {[%emt 0:00:06]} Nb7 {[%emt 0:03:52]} 17. Bf4 {[%emt 0:00:04]} d6 {[%emt 0:00:39]} 18. Rxe6 {[%emt 0:00:09]} O-O {[%emt 0:03:58]} 19. Nd5 {[%emt 0:00:03]} fxe6 {[%emt 0:21:07]} 20. Nxe6 {[%emt 0:00:04]} Qd7 {[%emt 0:06:25]} 21. Nxf8 {[%emt 0:02:24]} Bxf8 {[%emt 0:00:33]} 22. Nxc7 {[%emt 0:00:06]} Qxc7 {[%emt 0:00:13]} 23. Rxa3 {[%emt 0:00:31]} Nd8 {[%emt 0:00:55]} 24. Qd5+ {[%emt 0:00:53]} Qf7 {[%emt 0:03:32]} 25. c4 {[%emt 0:03:33]} Ndc6 {[%emt 0:01:54]} 26. Qxf7+ {[%emt 0:02:55]} Kxf7 {[%emt 0:00:06]} 27. b5 {[%emt 0:00:03]} axb5 {[%emt 0:00:12]} 28. cxb5 {[%emt 0:00:04]} Nd4 {[%emt 0:00:06]} 29. Be3 {[%emt 0:01:41]} Nc2 {[%emt 0:02:18]} 30. Ra8 {[%emt 0:03:21]} Nxe3 {[%emt 0:02:31]} 31. Rxb8 {[%emt 0:00:17]} Nc4 {[%emt 0:00:17]} 32. b6 {[%emt 0:00:05]} Nxb6 {[%emt 0:06:32]} 33. Rxb6 {[%emt 0:00:09]} Ke6 {[%emt 0:00:31]} 34. Kg2 {[%emt 0:02:21]} Be7 {[%emt 0:00:14]} 35. Kf3 {[%emt 0:00:08]} Kd5 {[%emt 0:00:48]} 36. Rb5+ {[%emt 0:00:22]} Kd4 {[%emt 0:00:58]} 37. h4 {[%emt 0:03:26]} d5 {[%emt 0:01:42]} 38. h5 {[%emt 0:00:25]} h6 {[%emt 0:00:40]} 39. Ke2 {[%emt 0:02:07]} Bf6 {[%emt 0:01:48]} 40. Rb7 {[%emt 0:00:48]} Ke4 {[%emt 0:32:04]} 41. Rb4+ {[%emt 0:31:13]} Kf5 {[%emt 0:02:05]} 42. Rb5 {[%emt 0:00:12]} Ke4 {[%emt 0:00:14]} 43. Ra5 {[%emt 0:04:19]} Kd4 {[%emt 0:00:00]} 44. Ra4+ {[%emt 0:00:00]} Kc3 {[%emt 0:00:00]} 45. Ke3 {[%emt 0:00:00]} Be7 {[%emt 0:00:00]} 46. f4 {[%emt 0:00:00]} d4+ {[%emt 0:00:00]} 47. Ke2 {[%emt 0:00:00]} Bc5 {[%emt 0:00:00]} 48. Kd1 {[%emt 0:00:00]} Kd3 {[%emt 0:00:00]} 49. Ra5 {[%emt 0:00:00]} Be7 {[%emt 0:00:00]} 50. Re5 {[%emt 0:00:00]} Bf6 {[%emt 0:00:00]} 51. g4 {[%emt 0:00:00]} Kc4 {[%emt 0:00:00]} 52. Rf5 {[%emt 0:00:00]} Bh4 {[%emt 0:00:00]} 53. Rf7 {[%emt 0:00:00]} Bg3 {[%emt 0:00:00]} 54. g5 {[%emt 0:00:00]} hxg5 {[%emt 0:05:14]} 55. fxg5 {[%emt 0:00:00]} Be5 {[%emt 0:00:49]} 56. h6 {[%emt 0:00:00]} g6 {[%emt 0:00:32]} 57. Rg7 {[%emt 0:00:00]} d3 {[%emt 0:00:24]} 58. Rxg6 {[%emt 0:00:00]} Kd5 {[%emt 0:00:12]} 59. h7 {[%emt 0:00:00]} 1-0

[Event "Australian-ch 2018"]
[Site "Sydney"]
[Date "2018.01.08"]
[Round "7.8"]
[White "Parle, Hughston"]
[Black "Puccini, Jack"]
[Result "0-1"]
[ECO "E90"]
[WhiteElo "1961"]
[BlackElo "2278"]
[PlyCount "146"]
[EventDate "2018.01.02"]
[EventType "tourn"]
[EventCountry "AUS"]
[TimeControl "40/5400+30:1800+30"]

1. d4 {[%emt 0:00:20]} Nf6 {[%emt 0:01:35]} 2. c4 {[%emt 0:00:11]} g6 {[%emt 0:01:00]} 3. Nc3 {[%emt 0:00:09]} Bg7 {[%emt 0:00:41]} 4. e4 {[%emt 0:00:14]} d6 {[%emt 0:00:13]} 5. Be2 {[%emt 0:00:11]} O-O {[%emt 0:00:11]} 6. Be3 {[%emt 0:00:30]} c5 {[%emt 0:05:47]} 7. Nf3 {[%emt 0:13:52]} Ng4 {[%emt 0:04:34]} 8. Bg5 {[%emt 0:06:47]} cxd4 {[%emt 0:29:21]} 9. Nxd4 {[%emt 0:07:43]} Qb6 {[%emt 0:02:41]} 10. Bxg4 {[%emt 0:31:05]} Bxg4 {[%emt 0:04:54]} 11. Qxg4 {[%emt 0:00:56]} Qxb2 {[%emt 0:03:19]} 12. O-O {[%emt 0:00:07]} Qxc3 {[%emt 0:02:23]} 13. Bxe7 {[%emt 0:04:40]} Qxd4 {[%emt 0:01:41]} 14. Bxf8 {[%emt 0:00:36]} Bxf8 {[%emt 0:00:47]} 15. Qc8 {[%emt 0:00:09]} Qc5 {[%emt 0:08:09]} 16. Qxb7 {[%emt 0:04:22]} Qc6 {[%emt 0:00:13]} 17. Rab1 {[%emt 0:01:27]} Qxb7 {[%emt 0:01:52]} 18. Rxb7 {[%emt 0:00:02]} Nc6 {[%emt 0:00:15]} 19. Rc7 {[%emt 0:00:10]} Nd4 {[%emt 0:01:19]} 20. Rb1 {[%emt 0:00:18]} Ne6 {[%emt 0:02:09]} 21. Rcb7 {[%emt 0:01:40]} a6 {[%emt 0:09:41]} 22. Rb8 {[%emt 0:05:06]} Ra7 {[%emt 0:00:08]} 23. Rc8 {[%emt 0:01:47]} Kg7 {[%emt 0:02:07]} 24. g3 {[%emt 0:00:35]} Nc5 {[%emt 0:02:27]} 25. f3 {[%emt 0:00:38]} Be7 {[%emt 0:00:30]} 26. Rb6 {[%emt 0:00:17]} Rd7 {[%emt 0:03:15]} 27. Kf2 {[%emt 0:00:45]} Bd8 {[%emt 0:01:41]} 28. Rb1 {[%emt 0:00:53]} Bf6 {[%emt 0:01:59]} 29. Rd1 {[%emt 0:01:47]} Ne6 {[%emt 0:02:01]} 30. Rc6 {[%emt 0:00:37]} Bd4+ {[%emt 0:01:22]} 31. Kg2 {[%emt 0:00:11]} Rb7 {[%emt 0:00:30]} 32. Rd2 {[%emt 0:04:34]} Be3 {[%emt 0:01:47]} 33. Rd3 {[%emt 0:01:23]} Rb2+ {[%emt 0:00:58]} 34. Kf1 {[%emt 0:00:04]} Rb1+ {[%emt 0:02:26]} 35. Ke2 {[%emt 0:01:28]} Nd4+ {[%emt 0:00:41]} 36. Kxe3 {[%emt 0:00:05]} Nxc6 {[%emt 0:00:04]} 37. Rxd6 {[%emt 0:00:04]} Nb4 {[%emt 0:02:14]} 38. c5 {[%emt 0:00:30]} Rc1 {[%emt 0:00:42]} 39. Rb6 {[%emt 0:00:50]} a5 {[%emt 0:00:55]} 40. Rb5 {[%emt 0:00:13]} Nxa2 {[%emt 0:30:57]} 41. Rxa5 {[%emt 0:30:07]} Nb4 {[%emt 0:00:00]} 42. Rb5 {[%emt 0:00:00]} Rc4 {[%emt 0:00:00]} 43. h4 {[%emt 0:00:00]} Nc6 {[%emt 0:00:00]} 44. Kd3 {[%emt 0:00:00]} Ne5+ {[%emt 0:00:00]} 45. Ke3 {[%emt 0:00:00]} Nd7 {[%emt 0:00:00]} 46. h5 {[%emt 0:00:00]} Nxc5 {[%emt 0:00:00]} 47. hxg6 {[%emt 0:00:00]} hxg6 {[%emt 0:00:00]} 48. Rb8 {[%emt 0:00:00]} Ne6 {[%emt 0:00:00]} 49. Rb3 {[%emt 0:00:00]} Kf6 {[%emt 0:00:00]} 50. Rd3 {[%emt 0:00:00]} Nc5 {[%emt 0:00:00]} 51. Rd6+ {[%emt 0:00:00]} Ne6 {[%emt 0:00:00]} 52. Rd3 {[%emt 0:00:00]} Rb4 {[%emt 0:00:00]} 53. Ra3 {[%emt 0:00:00]} Nc5 {[%emt 0:00:00]} 54. Kf4 {[%emt 0:00:00]} Rb3 {[%emt 0:00:00]} 55. e5+ {[%emt 0:00:00]} Ke6 {[%emt 0:00:00]} 56. Ra5 {[%emt 0:00:00]} Rc3 {[%emt 0:00:00]} 57. Rb5 {[%emt 0:00:00]} Rc4+ {[%emt 0:00:00]} 58. Kg5 {[%emt 0:00:00]} Kxe5 {[%emt 0:00:00]} 59. g4 {[%emt 0:00:00]} Ke6 {[%emt 0:00:00]} 60. f4 {[%emt 0:00:00]} Ke7 {[%emt 0:00:00]} 61. f5 {[%emt 0:00:00]} Ne4+ {[%emt 0:00:00]} 62. Kh6 {[%emt 0:00:00]} gxf5 {[%emt 0:00:00]} 63. Rxf5 {[%emt 0:00:00]} Nf6 {[%emt 0:00:00]} 64. Re5+ {[%emt 0:00:00]} Kf8 {[%emt 0:00:00]} 65. Ra5 {[%emt 0:00:00]} Rxg4 {[%emt 0:00:34]} 66. Ra8+ {[%emt 0:00:00]} Ne8 {[%emt 0:00:05]} 67. Kh5 {[%emt 0:00:00]} Rg6 {[%emt 0:00:36]} 68. Rb8 {[%emt 0:00:00]} Ke7 {[%emt 0:00:33]} 69. Rb7+ {[%emt 0:00:00]} Ke6 {[%emt 0:00:25]} 70. Rb6+ {[%emt 0:00:00]} Nd6 {[%emt 0:00:06]} 71. Ra6 {[%emt 0:00:00]} Rg1 {[%emt 0:00:14]} 72. Ra2 {[%emt 0:00:00]} f5 {[%emt 0:00:10]} 73. Re2+ {[%emt 0:00:00]} Ne4 {[%emt 0:00:06]} 0-1

[Event "Australian-ch 2018"]
[Site "Sydney"]
[Date "2018.01.08"]
[Round "7.9"]
[White "Kargosha, Bahman"]
[Black "Leaver, Kyle"]
[Result "1/2-1/2"]
[WhiteElo "2210"]
[BlackElo "1973"]
[PlyCount "74"]
[EventDate "2018.01.02"]
[EventType "tourn"]
[EventCountry "AUS"]
[TimeControl "40/5400+30:1800+30"]
[WhiteClock "1:30:30"]
[BlackClock "1:30:30"]

1. d4 {[%emt 0:00:00]} Nf6 {[%emt 0:00:00]} 2. c4 {[%emt 0:00:30]} g6 {[%emt 0:00:30]} 3. Nc3 {[%emt 0:00:30]} d5 {[%emt 0:00:30]} 4. cxd5 {[%emt 0:00:30]} Nxd5 {[%emt 0:00:30]} 5. e4 {[%emt 0:00:30]} Nxc3 {[%emt 0:00:30]} 6. bxc3 {[%emt 0:00:30]} Bg7 {[%emt 0:00:30]} 7. Qa4+ {[%emt 0:00:30]} Nd7 {[%emt 0:00:30]} 8. Nf3 {[%emt 0:00:30]} O-O {[%emt 0:00:30]} 9. Be2 {[%emt 0:00:30]} c5 {[%emt 0:00:30]} 10. O-O {[%emt 0:00:30]} cxd4 {[%emt 0:00:30]} 11. cxd4 {[%emt 0:00:30]} Nc5 {[%emt 0:00:30]} 12. dxc5 {[%emt 0:00:30]} Bxa1 {[%emt 0:00:30]} 13. e5 {[%emt 0:00:30]} Bc3 {[%emt 0:00:30]} 14. Bh6 {[%emt 0:00:30]} Qa5 {[%emt 0:00:30]} 15. Qf4 {[%emt 0:00:30]} Qb4 {[%emt 0:00:30]} 16. Bc4 {[%emt 0:00:30]} Be6 {[%emt 0:00:30]} 17. Bxf8 {[%emt 0:00:30]} Rxf8 {[%emt 0:00:30]} 18. Qh6 {[%emt 0:00:30]} Bd2 {[%emt 0:00:30]} 19. Nxd2 {[%emt 0:00:30]} Bxc4 {[%emt 0:00:30]} 20. Ne4 {[%emt 0:00:30]} f6 {[%emt 0:00:30]} 21. exf6 {[%emt 0:00:30]} exf6 {[%emt 0:00:30]} 22. Rd1 {[%emt 0:00:30]} Bd5 {[%emt 0:00:30]} 23. Ng3 {[%emt 0:00:30]} Qxc5 {[%emt 0:00:30]} 24. h4 {[%emt 0:00:30]} Bc6 {[%emt 0:00:30]} 25. Qf4 {[%emt 0:00:30]} Qe5 {[%emt 0:00:30]} 26. Qc4+ {[%emt 0:00:30]} Kg7 {[%emt 0:00:30]} 27. h5 {[%emt 0:00:30]} Re8 {[%emt 0:00:30]} 28. Qc1 {[%emt 0:00:30]} gxh5 {[%emt 0:00:30]} 29. Qc4 {[%emt 0:00:30]} Qg5 {[%emt 0:00:30]} 30. Rd4 {[%emt 0:00:30]} Re5 {[%emt 0:00:30]} 31. Rh4 {[%emt 0:00:30]} Qg6 {[%emt 0:00:30]} 32. Kh2 {[%emt 0:00:30]} Qf7 {[%emt 0:00:30]} 33. Qf4 {[%emt 0:00:30]} Qg6 {[%emt 0:00:30]} 34. Qd4 {[%emt 0:00:30]} Qg5 {[%emt 0:00:30]} 35. Nxh5+ {[%emt 0:00:30]} Qxh5 {[%emt 0:00:30]} 36. Rxh5 {[%emt 0:00:30]} Rxh5+ {[%emt 0:00:30]} 37. Kg1 {[%emt 0:00:30]} Ra5 {[%emt 0:00:30]} 1/2-1/2

[Event "Australian-ch 2018"]
[Site "Sydney"]
[Date "2018.01.08"]
[Round "7.10"]
[White "Kethro, Michael"]
[Black "Huynh, Arthur"]
[Result "1/2-1/2"]
[WhiteElo "2195"]
[BlackElo "2042"]
[PlyCount "118"]
[EventDate "2018.01.02"]
[EventType "tourn"]
[EventCountry "AUS"]
[TimeControl "40/5400+30:1800+30"]
[WhiteClock "1:30:30"]
[BlackClock "1:30:30"]

1. Nf3 {[%emt 0:00:00]} d5 {[%emt 0:00:00]} 2. c4 {[%emt 0:00:30]} e6 {[%emt 0:00:30]} 3. b3 {[%emt 0:00:30]} Nf6 {[%emt 0:00:30]} 4. Bb2 {[%emt 0:00:30]} Be7 {[%emt 0:00:30]} 5. g3 {[%emt 0:00:30]} b6 {[%emt 0:00:30]} 6. Bg2 {[%emt 0:00:30]} Bb7 {[%emt 0:00:30]} 7. O-O {[%emt 0:00:30]} dxc4 {[%emt 0:00:30]} 8. bxc4 {[%emt 0:00:30]} c5 {[%emt 0:00:30]} 9. e3 {[%emt 0:00:30]} O-O {[%emt 0:00:30]} 10. Nc3 {[%emt 0:00:30]} Nc6 {[%emt 0:00:30]} 11. Qe2 {[%emt 0:00:30]} Rc8 {[%emt 0:00:30]} 12. Rad1 {[%emt 0:00:30]} Qc7 {[%emt 0:00:30]} 13. d3 {[%emt 0:00:30]} Rfd8 {[%emt 0:00:30]} 14. Ng5 {[%emt 0:00:30]} Rd7 {[%emt 0:00:30]} 15. f4 {[%emt 0:00:30]} Rcd8 {[%emt 0:00:30]} 16. a3 {[%emt 0:00:30]} Na5 {[%emt 0:00:30]} 17. g4 {[%emt 0:00:30]} Bxg2 {[%emt 0:00:30]} 18. Kxg2 {[%emt 0:00:30]} Qb7+ {[%emt 0:00:30]} 19. Kg1 {[%emt 0:00:30]} a6 {[%emt 0:00:30]} 20. Rf3 {[%emt 0:00:30]} b5 {[%emt 0:00:30]} 21. cxb5 {[%emt 0:00:30]} axb5 {[%emt 0:00:30]} 22. Nxf7 {[%emt 0:00:30]} Kxf7 {[%emt 0:00:30]} 23. g5 {[%emt 0:00:30]} Rxd3 {[%emt 0:00:30]} 24. gxf6 {[%emt 0:00:30]} Rxd1+ {[%emt 0:00:30]} 25. Nxd1 {[%emt 0:00:30]} Bxf6 {[%emt 0:00:30]} 26. Bxf6 {[%emt 0:00:30]} Kxf6 {[%emt 0:00:30]} 27. Rg3 {[%emt 0:00:30]} g6 {[%emt 0:00:30]} 28. Qg4 {[%emt 0:00:30]} Qd7 {[%emt 0:00:30]} 29. Nf2 {[%emt 0:00:30]} Kg7 {[%emt 0:00:30]} 30. Qg5 {[%emt 0:00:30]} Rf8 {[%emt 0:00:30]} 31. Qxc5 {[%emt 0:00:30]} Nc4 {[%emt 0:00:30]} 32. Qb4 {[%emt 0:00:30]} Qd2 {[%emt 0:00:30]} 33. Qe7+ {[%emt 0:00:30]} Rf7 {[%emt 0:00:30]} 34. Qxe6 {[%emt 0:00:30]} Qc1+ {[%emt 0:00:30]} 35. Kg2 {[%emt 0:00:30]} Qxa3 {[%emt 0:00:30]} 36. f5 {[%emt 0:00:30]} Qd6 {[%emt 0:00:30]} 37. Qxd6 {[%emt 0:00:30]} Nxd6 {[%emt 0:00:30]} 38. e4 {[%emt 0:00:30]} Re7 {[%emt 0:00:30]} 39. Rb3 {[%emt 0:00:30]} gxf5 {[%emt 0:00:30]} 40. exf5 {[%emt 0:00:30]} Kf6 {[%emt 0:00:30]} 41. Nd1 {[%emt 0:30:30]} Kxf5 {[%emt 0:30:30]} 42. Rd3 {[%emt 0:00:30]} Ke6 {[%emt 0:00:30]} 43. Nc3 {[%emt 0:00:30]} Rb7 {[%emt 0:00:30]} 44. Na2 {[%emt 0:00:30]} Ra7 {[%emt 0:00:30]} 45. Nb4 {[%emt 0:00:30]} Nc4 {[%emt 0:00:30]} 46. h4 {[%emt 0:00:30]} Rd7 {[%emt 0:00:30]} 47. Rxd7 {[%emt 0:00:30]} Kxd7 {[%emt 0:00:30]} 48. Kg3 {[%emt 0:00:30]} Ke6 {[%emt 0:00:30]} 49. Kf4 {[%emt 0:00:30]} Kf6 {[%emt 0:00:30]} 50. Kg4 {[%emt 0:00:30]} Kg6 {[%emt 0:00:30]} 51. Nd5 {[%emt 0:00:30]} Ne5+ {[%emt 0:00:30]} 52. Kf4 {[%emt 0:00:30]} Nc6 {[%emt 0:00:30]} 53. Kg4 {[%emt 0:00:30]} h5+ {[%emt 0:00:30]} 54. Kf4 {[%emt 0:00:30]} b4 {[%emt 0:00:30]} 55. Ke4 {[%emt 0:00:30]} b3 {[%emt 0:00:30]} 56. Nf4+ {[%emt 0:00:30]} Kh6 {[%emt 0:00:30]} 57. Kd3 {[%emt 0:00:30]} Nd4 {[%emt 0:00:30]} 58. Kc3 {[%emt 0:00:30]} Nf5 {[%emt 0:00:30]} 59. Kxb3 {[%emt 0:00:30]} Nxh4 {[%emt 0:00:30]} 1/2-1/2

[Event "Australian-ch 2018"]
[Site "Sydney"]
[Date "2018.01.08"]
[Round "7.11"]
[White "Ferozkohi, Ihsan"]
[Black "Zhang, Jilin"]
[Result "0-1"]
[WhiteElo "2130"]
[BlackElo "2267"]
[PlyCount "102"]
[EventDate "2018.01.02"]
[EventType "tourn"]
[EventCountry "AUS"]
[TimeControl "40/5400+30:1800+30"]
[WhiteClock "1:30:30"]
[BlackClock "1:30:30"]

1. Nf3 {[%emt 0:00:00]} Nf6 {[%emt 0:00:00]} 2. g3 {[%emt 0:00:30]} d5 {[%emt 0:00:30]} 3. d4 {[%emt 0:00:30]} c6 {[%emt 0:00:30]} 4. Bg2 {[%emt 0:00:30]} h6 {[%emt 0:00:30]} 5. Nbd2 {[%emt 0:00:30]} Bf5 {[%emt 0:00:30]} 6. O-O {[%emt 0:00:30]} e6 {[%emt 0:00:30]} 7. c4 {[%emt 0:00:30]} Be7 {[%emt 0:00:30]} 8. b3 {[%emt 0:00:30]} O-O {[%emt 0:00:30]} 9. Bb2 {[%emt 0:00:30]} Nbd7 {[%emt 0:00:30]} 10. Ne5 {[%emt 0:00:30]} Nxe5 {[%emt 0:00:30]} 11. dxe5 {[%emt 0:00:30]} Ne4 {[%emt 0:00:30]} 12. Nxe4 {[%emt 0:00:30]} dxe4 {[%emt 0:00:30]} 13. Qc1 {[%emt 0:00:30]} Qb6 {[%emt 0:00:30]} 14. e3 {[%emt 0:00:30]} Rfd8 {[%emt 0:00:30]} 15. Qc2 {[%emt 0:00:30]} Rd3 {[%emt 0:00:30]} 16. Rfd1 {[%emt 0:00:30]} Rad8 {[%emt 0:00:30]} 17. Bf1 {[%emt 0:00:30]} R3d7 {[%emt 0:00:30]} 18. Rxd7 {[%emt 0:00:30]} Rxd7 {[%emt 0:00:30]} 19. Rd1 {[%emt 0:00:30]} Rxd1 {[%emt 0:00:30]} 20. Qxd1 {[%emt 0:00:30]} Qd8 {[%emt 0:00:30]} 21. Qc2 {[%emt 0:00:30]} Qa5 {[%emt 0:00:30]} 22. a4 {[%emt 0:00:30]} Bb4 {[%emt 0:00:30]} 23. Bg2 {[%emt 0:00:30]} Qd8 {[%emt 0:00:30]} 24. Bf1 {[%emt 0:00:30]} Bg4 {[%emt 0:00:30]} 25. Be2 {[%emt 0:00:30]} Bxe2 {[%emt 0:00:30]} 26. Qxe2 {[%emt 0:00:30]} Qd3 {[%emt 0:00:30]} 27. Qxd3 {[%emt 0:00:30]} exd3 {[%emt 0:00:30]} 28. Kf1 {[%emt 0:00:30]} h5 {[%emt 0:00:30]} 29. f4 {[%emt 0:00:30]} c5 {[%emt 0:00:30]} 30. Kf2 {[%emt 0:00:30]} Kh7 {[%emt 0:00:30]} 31. e4 {[%emt 0:00:30]} d2 {[%emt 0:00:30]} 32. Ke2 {[%emt 0:00:30]} Kg8 {[%emt 0:00:30]} 33. h3 {[%emt 0:00:30]} Kf8 {[%emt 0:00:30]} 34. g4 {[%emt 0:00:30]} g6 {[%emt 0:00:30]} 35. Kd1 {[%emt 0:00:30]} Ke8 {[%emt 0:00:30]} 36. Ke2 {[%emt 0:00:30]} Kd7 {[%emt 0:00:30]} 37. Kd1 {[%emt 0:00:30]} Kc6 {[%emt 0:00:30]} 38. Kc2 {[%emt 0:00:30]} a6 {[%emt 0:00:30]} 39. Ba1 {[%emt 0:00:30]} b5 {[%emt 0:00:30]} 40. axb5+ {[%emt 0:00:30]} axb5 {[%emt 0:00:30]} 41. Bb2 {[%emt 0:30:30]} bxc4 {[%emt 0:30:30]} 42. bxc4 {[%emt 0:00:30]} Kb6 {[%emt 0:00:30]} 43. f5 {[%emt 0:00:30]} Ka5 {[%emt 0:00:30]} 44. fxg6 {[%emt 0:00:30]} fxg6 {[%emt 0:00:30]} 45. gxh5 {[%emt 0:00:30]} gxh5 {[%emt 0:00:30]} 46. h4 {[%emt 0:00:30]} Ka4 {[%emt 0:00:30]} 47. Ba1 {[%emt 0:00:30]} Ka3 {[%emt 0:00:30]} 48. Bb2+ {[%emt 0:00:30]} Ka2 {[%emt 0:00:30]} 49. Bd4 {[%emt 0:00:30]} cxd4 {[%emt 0:00:30]} 50. c5 {[%emt 0:00:30]} Bxc5 {[%emt 0:00:30]} 51. Kxd2 {[%emt 0:00:30]} Kb3 {[%emt 0:00:30]} 0-1

[Event "Australian-ch 2018"]
[Site "Sydney"]
[Date "2018.01.08"]
[Round "7.12"]
[White "Yang, Ray"]
[Black "Reilly, Tim"]
[Result "1-0"]
[WhiteElo "2003"]
[BlackElo "2169"]
[PlyCount "40"]
[EventDate "2018.01.02"]
[EventType "tourn"]
[EventCountry "AUS"]
[TimeControl "40/5400+30:1800+30"]
[WhiteClock "1:30:30"]
[BlackClock "1:30:30"]

1. d4 {[%emt 0:00:00]} d6 {[%emt 0:00:00]} 2. c4 {[%emt 0:00:30]} f5 {[%emt 0:00:30]} 3. Nc3 {[%emt 0:00:30]} Nf6 {[%emt 0:00:30]} 4. Nf3 {[%emt 0:00:30]} g6 {[%emt 0:00:30]} 5. g3 {[%emt 0:00:30]} Bg7 {[%emt 0:00:30]} 6. Bg2 {[%emt 0:00:30]} O-O {[%emt 0:00:30]} 7. O-O {[%emt 0:00:30]} c6 {[%emt 0:00:30]} 8. b4 {[%emt 0:00:30]} Qc7 {[%emt 0:00:30]} 9. Qb3 {[%emt 0:00:30]} Kh8 {[%emt 0:00:30]} 10. Ba3 {[%emt 0:00:30]} e5 {[%emt 0:00:30]} 11. dxe5 {[%emt 0:00:30]} dxe5 {[%emt 0:00:30]} 12. e4 {[%emt 0:00:30]} f4 {[%emt 0:00:30]} 13. b5 {[%emt 0:00:30]} Re8 {[%emt 0:00:30]} 14. Rad1 {[%emt 0:00:30]} Nh5 {[%emt 0:00:30]} 15. Bd6 {[%emt 0:00:30]} Qf7 {[%emt 0:00:30]} 16. bxc6 {[%emt 0:00:30]} Nxc6 {[%emt 0:00:30]} 17. Nd5 {[%emt 0:00:30]} Rd8 {[%emt 0:00:30]} 18. Ng5 {[%emt 0:00:30]} Qg8 {[%emt 0:00:30]} 19. Nc7 {[%emt 0:00:30]} Nd4 {[%emt 0:00:30]} 20. Rxd4 {[%emt 0:00:30]} exd4 {[%emt 0:00:30]} 1-0